fUSD/lending_fUSD_20250213
["ID","MTS","AMOUNT","RATE_DAILY","PERIOD"]
[352986801,1739475076890,-703.39,0.00013945,2]
[352986802,1739475076900,-958.04,0.00013945,2]
[352986803,1739475076909,-500.0,0.00013945,2]
[352986804,1739475076920,-500.0,0.00013945,2]
[352986805,1739475076930,-610.65,0.00013945,2]
[352986806,1739475076940,-739.92,0.00013945,2]
[352986807,1739475076949,-575.1,0.00013945,2]
[352986808,1739475076959,-500.0,0.00013945,2]
[352986809,1739475076969,-500.0,0.00013945,2]
[352986810,1739475076979,-619.9,0.00013945,2]
[352986811,1739475076988,-500.0,0.00013945,2]
[352986812,1739475076999,-588.16,0.00013945,2]
[352986813,1739475077008,-500.0,0.00013945,2]
[352986814,1739475077017,-830.4,0.00013945,2]
[352986815,1739475077027,-546.31,0.00013945,2]
[352986816,1739475077036,-712.02,0.00013945,2]
[352986817,1739475077045,-500.0,0.00013945,2]
[352986818,1739475077055,-724.2,0.00013945,2]
[352986819,1739475077064,-952.21,0.00013945,2]
[352986820,1739475077074,-494.78813088,0.00013945,2]
[352986821,1739475077083,-775.03,0.00013945,2]
[352986822,1739475077093,-500.0,0.00013945,2]
[352986823,1739475077103,-500.0,0.00013945,2]
[352986824,1739475077112,-762.98,0.00013945,2]
[352986825,1739475077122,-500.0,0.00013945,2]
[352986826,1739475077132,-573.88,0.00013945,2]
[352986827,1739475077141,-624.29,0.00013945,2]
[352986828,1739475077151,-2514.14,0.00013945,2]
[352986829,1739475077161,-503.60597586,0.00013945,2]
[352986830,1739475077170,-500.0,0.00013945,2]
[352986831,1739475077181,-745.85,0.00013945,2]
[352986832,1739475077191,-500.0,0.00013945,2]
[352986833,1739475077200,-1770.9,0.00013945,2]
[352986834,1739475077210,-500.0,0.00013945,2]
[352986835,1739475077220,-500.0,0.00013945,2]
[352986836,1739475077229,-976.85,0.00013945,2]
[352986837,1739475077239,-500.0,0.00013945,2]
[352986838,1739475077248,-500.0,0.00013945,2]
[352986839,1739475077258,-500.0,0.00013945,2]
[352986840,1739475077267,-700.26,0.00013945,2]
[352986841,1739475077277,-1919.22,0.00013945,2]
[352986842,1739475077286,-901.17,0.00013945,2]
[352986843,1739475077296,-2037.16,0.00013945,2]
[352986844,1739475077305,-687.13,0.00013945,2]
[352986845,1739475077316,-500.0,0.00013945,2]
[352986846,1739475077326,-1145.15,0.00013945,2]
[352986847,1739475077335,-581.75,0.00013945,2]
[352986848,1739475077345,-1572.74,0.00013945,2]
[352986849,1739475077355,-500.0,0.00013945,2]
[352986850,1739475077364,-725.91,0.00013945,2]
[352986851,1739475077374,-877.92,0.00013945,2]
[352986852,1739475077385,-559.77,0.00013945,2]
[352986853,1739475077395,-500.0,0.00013945,2]
[352986854,1739475077405,-502.85241964,0.00013945,2]
[352986855,1739475077415,-719.35,0.00013945,2]
[352986856,1739475077425,-3446.7,0.00013945,2]
[352986857,1739475077434,-639.1,0.00013945,2]
[352986858,1739475077444,-813.77,0.00013945,2]
[352986859,1739475077453,-2137.44,0.00013945,2]
[352986860,1739475077463,-500.0,0.00013945,2]
[352986861,1739475077472,-500.0,0.00013945,2]
[352986862,1739475077483,-500.0,0.00013945,2]
[352986863,1739475077497,-500.0,0.00013945,2]
[352986864,1739475077506,-534.03,0.00013945,2]
[352986865,1739475077516,-3190.37,0.00013945,2]
[352986866,1739475077526,-516.35,0.00013945,2]
[352986867,1739475077536,-500.0,0.00013945,2]
[352986868,1739475077546,-1958.68,0.00013945,2]
[352986869,1739475077556,-1221.78,0.00013945,2]
[352986870,1739475077567,-500.0,0.00013945,2]
[352986871,1739475077577,-2458.28,0.00013945,2]
[352986872,1739475077586,-560.19,0.00013945,2]
[352986873,1739475077596,-572.405992,0.00013945,2]
[352986874,1739475077606,-647.32,0.00013945,2]
[352986875,1739475077615,-591.03,0.00013945,2]
[352986876,1739475077625,-557.03861601,0.00013945,2]
[352986877,1739475077636,-631.93294623,0.00013945,2]
[352986878,1739475077645,-1556.13,0.00013945,2]
[352986879,1739475077654,-1513.41,0.00013945,2]
[352986880,1739475077664,-500.0,0.00013945,2]
[352986881,1739475077674,-500.0,0.00013945,2]
[352986882,1739475077683,-1000.01,0.00013945,2]
[352986883,1739475077694,-500.0,0.00013945,2]
[352986884,1739475077704,-500.0,0.00013945,2]
[352986885,1739475077714,-335.02964358,0.00013945,2]
[352986886,1739475077723,-500.0,0.00013945,2]
[352986887,1739475077733,-500.0,0.00013945,2]
[352986888,1739475077743,-2028.54,0.00013945,2]
[352986889,1739475077753,-3409.92,0.00013945,2]
[352986890,1739475077763,-930.38,0.00013945,2]
[352986891,1739475077772,-3086.3,0.00013945,2]
[352986892,1739475077782,-507.22351987,0.00013945,2]
[352986893,1739475077791,-637.57,0.00013945,2]
[352986894,1739475077800,-500.0,0.00013945,2]
[352986895,1739475077811,-500.0,0.00013945,2]
[352986896,1739475077821,-2588.14,0.00013945,2]
[352986897,1739475077831,-1014.99,0.00013945,2]
[352986898,1739475077840,-500.0,0.00013945,2]
[352986899,1739475077851,-3670.51,0.00013945,2]
[352986900,1739475077860,-1003.87,0.00013945,2]
[352986901,1739475077870,-500.0,0.00013945,2]
[352986902,1739475077880,-2182.31,0.00013945,2]
[352986903,1739475077891,-2545.97,0.00013945,2]
[352986904,1739475077900,-1494.82,0.00013945,2]
[352986905,1739475077911,-500.0,0.00013945,2]
[352986906,1739475077921,-500.0,0.00013945,2]
[352986907,1739475077930,-2931.75,0.00013945,2]
[352986908,1739475077939,-1132.54,0.00013945,2]
[352986909,1739475077948,-2737.88,0.00013945,2]
[352986910,1739475077959,-667.0,0.00013945,2]
[352986911,1739475077969,-500.0,0.00013945,2]
[352986912,1739475077980,-2527.52,0.00013945,2]
[352986913,1739475077990,-1215.71,0.00013945,2]
[352986914,1739475078000,-500.0,0.00013945,2]
[352986915,1739475078010,-500.0,0.00013945,2]
[352986916,1739475078020,-1595.94,0.00013945,2]
[352986917,1739475078030,-500.0,0.00013945,2]
[352986918,1739475078040,-500.0,0.00013945,2]
[352986919,1739475078051,-667.24,0.00013945,2]
[352986920,1739475078061,-500.0,0.00013945,2]
[352986921,1739475078073,-1016.15,0.00013945,2]
[352986922,1739475078083,-500.0,0.00013945,2]
[352986923,1739475078093,-2460.47,0.00013945,2]
[352986924,1739475078103,-1395.37,0.00013945,2]
[352986925,1739475078113,-500.0,0.00013945,2]
[352986926,1739475078123,-500.0,0.00013945,2]
[352986927,1739475078133,-3656.76,0.00013945,2]
[352986928,1739475078143,-500.0,0.00013945,2]
[352986929,1739475078154,-1052.8,0.00013945,2]
[352986930,1739475078164,-1790.89,0.00013945,2]
[352986931,1739475078175,-1242.64,0.00013945,2]
[352986932,1739475078184,-675.2,0.00013945,2]
[352986933,1739475078195,-500.0,0.00013945,2]
[352986934,1739475078205,-500.0,0.00013945,2]
[352986935,1739475078215,-3668.44,0.00013945,2]
[352986936,1739475078225,-1539.64,0.00013945,2]
[352986937,1739475078236,-637.11,0.00013945,2]
[352986938,1739475078246,-1108.42,0.00013945,2]
[352986939,1739475078256,-1175.11,0.00013945,2]
[352986940,1739475078266,-3058.34,0.00013945,2]
[352986941,1739475078276,-500.0,0.00013945,2]
[352986942,1739475078287,-780.58,0.00013945,2]
[352986943,1739475078297,-500.0,0.00013945,2]
[352986944,1739475078307,-500.0,0.00013945,2]
[352986945,1739475078317,-610.29,0.00013945,2]
[352986946,1739475078327,-1056.17,0.00013945,2]
[352986947,1739475078337,-500.0,0.00013945,2]
[352986948,1739475078348,-2187.98,0.00013945,2]
[352986949,1739475078358,-500.0,0.00013945,2]
[352986950,1739475078368,-500.0,0.00013945,2]
[352986951,1739475078378,-2040.68,0.00013945,2]
[352986952,1739475078388,-575.34,0.00013945,2]
[352986953,1739475078398,-2159.87,0.00013945,2]
[352986954,1739475078408,-925.06,0.00013945,2]
[352986955,1739475078418,-743.79,0.00013945,2]
[352986956,1739475078428,-500.0,0.00013945,2]
[352986957,1739475078438,-823.33,0.00013945,2]
[352986958,1739475078449,-511.99,0.00013945,2]
[352986959,1739475078459,-500.0,0.00013945,2]
[352986960,1739475078469,-2037.06,0.00013945,2]
[352986961,1739475078480,-1360.94,0.00013945,2]
[352986962,1739475078494,-500.0,0.00013945,2]
[352986963,1739475078503,-498.26117939,0.00013945,2]
[352986964,1739475078513,-500.0,0.00013945,2]
[352986965,1739475078525,-500.0,0.00013945,2]
[352986966,1739475078535,-802.49,0.00013945,2]
[352986967,1739475078544,-1155.5,0.00013945,2]
[352986968,1739475078555,-500.0,0.00013945,2]
[352986969,1739475078565,-500.0,0.00013945,2]
[352986970,1739475078575,-500.0,0.00013945,2]
[352986971,1739475078584,-500.0,0.00013945,2]
[352986972,1739475078594,-1376.21,0.00013945,2]
[352986973,1739475078604,-500.0,0.00013945,2]
[352986974,1739475078613,-637.08,0.00013945,2]
[352986975,1739475078623,-500.0,0.00013945,2]
[352986976,1739475078633,-500.0,0.00013945,2]
[352986977,1739475078643,-2436.15,0.00013945,2]
[352986978,1739475078653,-500.0,0.00013945,2]
[352986979,1739475078664,-2924.42,0.00013945,2]
[352986980,1739475078673,-500.0,0.00013945,2]
[352986981,1739475078683,-981.7,0.00013945,2]
[352986982,1739475078693,-500.0,0.00013945,2]
[352986983,1739475078703,-500.0,0.00013945,2]
[352986984,1739475078713,-1534.91,0.00013945,2]
[352986985,1739475078723,-796.87,0.00013945,2]
[352986986,1739475078735,-500.0,0.00013945,2]
[352986987,1739475078745,-1260.55,0.00013945,2]
[352986988,1739475078755,-500.0,0.00013945,2]
[352986989,1739475078766,-313.10881798,0.00013945,2]
[352986990,1739475078776,-1202.4,0.00013945,2]
[352986991,1739475078786,-2281.4,0.00013945,2]
[352986992,1739475078990,-666.14,0.00013945,2]
[352986993,1739475079001,-778.09,0.00013945,2]
[352986994,1739475079011,-1409.62,0.00013945,2]
[352986995,1739475079021,-1429.87,0.00013945,2]
[352986996,1739475079031,-500.0,0.00013945,2]
[352986997,1739475079041,-1040.07,0.00013945,2]
[352986998,1739475079051,-500.0,0.00013945,2]
[352986999,1739475079061,-1640.83,0.00013945,2]
[352987000,1739475079072,-1104.4,0.00013945,2]
[352987001,1739475079082,-801.15,0.00013945,2]
[352987002,1739475079091,-579.37,0.00013945,2]
[352987003,1739475079102,-2266.57,0.00013945,2]
[352987004,1739475079113,-997.98,0.00013945,2]
[352987005,1739475079124,-2690.65,0.00013945,2]
[352987006,1739475079135,-995.51,0.00013945,2]
[352987007,1739475079146,-1200.0,0.00013945,2]
[352987008,1739475079156,-553.83,0.00013945,2]
[352987009,1739475079166,-1782.01,0.00013945,2]
[352987010,1739475079177,-1239.18,0.00013945,2]
[352987011,1739475079187,-500.0,0.00013945,2]
[352987012,1739475079197,-552.72,0.00013945,2]
[352987013,1739475079207,-500.0,0.00013945,2]
[352987014,1739475079217,-1282.95,0.00013945,2]
[352987015,1739475079227,-632.66139831,0.00013945,2]
[352987016,1739475079237,-624.24,0.00013945,2]
[352987017,1739475079247,-500.0,0.00013945,2]
[352987018,1739475079257,-2850.49,0.00013945,2]
[352987019,1739475079267,-1002.9,0.00013945,2]
[352987020,1739475079278,-1467.1,0.00013945,2]
[352987021,1739475079287,-1400.22,0.00013945,2]
[352987022,1739475079296,-2108.26,0.00013945,2]
[352987023,1739475079306,-709.63,0.00013945,2]
[352987024,1739475079315,-500.0,0.00013945,2]
[352987025,1739475079326,-500.0,0.00013945,2]
[352987026,1739475079336,-500.0,0.00013945,2]
[352987027,1739475079347,-225.07541707,0.00013945,2]
[352987028,1739475079356,-500.0,0.00013945,2]
[352987029,1739475079367,-500.0,0.00013945,2]
[352987030,1739475079378,-1522.94,0.00013945,2]
[352987031,1739475079388,-2069.75,0.00013945,2]
[352987032,1739475079398,-500.0,0.00013945,2]
[352987033,1739475079407,-500.0,0.00013945,2]
[352987034,1739475079417,-772.53,0.00013945,2]
[352987035,1739475079428,-500.0,0.00013945,2]
[352987036,1739475079438,-511.85,0.00013945,2]
[352987037,1739475079449,-2656.38,0.00013945,2]
[352987038,1739475079458,-1294.55,0.00013945,2]
[352987039,1739475079468,-1429.9,0.00013945,2]
[352987040,1739475079480,-524.36,0.00013945,2]
[352987041,1739475079491,-1094.44,0.00013945,2]
[352987042,1739475079501,-1329.41,0.00013945,2]
[352987043,1739475079512,-500.0,0.00013945,2]
[352987044,1739475079523,-1283.0,0.00013945,2]
[352987045,1739475079534,-697.86,0.00013945,2]
[352987046,1739475079544,-1309.11,0.00013945,2]
[352987047,1739475079555,-2064.23,0.00013945,2]
[352987048,1739475079567,-1583.82,0.00013945,2]
[352987049,1739475079578,-1251.18,0.00013945,2]
[352987050,1739475079587,-547.91,0.00013945,2]
[352987051,1739475079597,-4371.78,0.00013945,2]
[352987052,1739475079607,-2869.16,0.00013945,2]
[352987053,1739475079616,-2077.18,0.00013945,2]
[352987054,1739475079626,-881.09,0.00013945,2]
[352987055,1739475079636,-500.0,0.00013945,2]
[352987056,1739475079646,-500.0,0.00013945,2]
[352987057,1739475079656,-1441.54,0.00013945,2]
[352987058,1739475079666,-900.83,0.00013945,2]
[352987059,1739475079676,-1361.19,0.00013945,2]
[352987060,1739475079686,-2768.36,0.00013945,2]
[352987061,1739475079695,-500.0,0.00013945,2]
[352987062,1739475079705,-1295.81,0.00013945,2]
[352987063,1739475079717,-1405.83,0.00013945,2]
[352987064,1739475079726,-1763.39,0.00013945,2]
[352987065,1739475079736,-1889.55,0.00013945,2]
[352987066,1739475079746,-500.0,0.00013945,2]
[352987067,1739475079756,-1150.21,0.00013945,2]
[352987068,1739475079766,-500.0,0.00013945,2]
[352987069,1739475079776,-500.0,0.00013945,2]
[352987070,1739475079787,-1732.66,0.00013945,2]
[352987071,1739475079797,-2670.18,0.00013945,2]
[352987072,1739475079807,-500.0,0.00013945,2]
[352987073,1739475079817,-783.68,0.00013945,2]
[352987074,1739475079827,-566.18224198,0.00013945,2]
[352987075,1739475079837,-500.0,0.00013945,2]
[352987076,1739475079847,-500.0,0.00013945,2]
[352987077,1739475079856,-500.0,0.00013945,2]
[352987078,1739475079867,-500.0,0.00013945,2]
[352987079,1739475079876,-1121.82,0.00013945,2]
[352987080,1739475079886,-1548.28,0.00013945,2]
[352987081,1739475079896,-1244.33,0.00013945,2]
[352987082,1739475079906,-2668.94,0.00013945,2]
[352987083,1739475079916,-1777.99,0.00013945,2]
[352987084,1739475079926,-1985.8,0.00013945,2]
[352987085,1739475079935,-2785.75,0.00013945,2]
[352987086,1739475079946,-2115.88,0.00013945,2]
[352987087,1739475079955,-500.0,0.00013945,2]
[352987088,1739475079966,-500.0,0.00013945,2]
[352987089,1739475079975,-1226.27,0.00013945,2]
[352987090,1739475079985,-1238.48,0.00013945,2]
[352987091,1739475079995,-2525.46,0.00013945,2]
[352987092,1739475080006,-3166.11,0.00013945,2]
[352987093,1739475080015,-500.0,0.00013945,2]
[352987094,1739475080025,-500.0,0.00013945,2]
[352987095,1739475080035,-1513.55,0.00013945,2]
[352987096,1739475080045,-4385.52,0.00013945,2]
[352987097,1739475080054,-500.0,0.00013945,2]
[352987098,1739475080064,-983.29,0.00013945,2]
[352987099,1739475080075,-1240.73,0.00013945,2]
[352987100,1739475080085,-2459.84,0.00013945,2]
[352987101,1739475080095,-2655.01,0.00013945,2]
[352987102,1739475080104,-500.0,0.00013945,2]
[352987103,1739475080115,-500.0,0.00013945,2]
[352987104,1739475080125,-2037.61,0.00013945,2]
[352987105,1739475080135,-5530.04,0.00013945,2]
[352987106,1739475080144,-577.99,0.00013945,2]
[352987107,1739475080154,-500.0,0.00013945,2]
[352987108,1739475080163,-500.0,0.00013945,2]
[352987109,1739475080173,-500.0,0.00013945,2]
[352987110,1739475080182,-866.54,0.00013945,2]
[352987111,1739475080191,-500.0,0.00013945,2]
[352987112,1739475080201,-899.93,0.00013945,2]
[352987113,1739475080210,-2385.67,0.00013945,2]
[352987114,1739475080221,-2446.7,0.00013945,2]
[352987115,1739475080231,-3263.65,0.00013945,2]
[352987116,1739475080240,-946.97,0.00013945,2]
[352987117,1739475080250,-6174.71,0.00013945,2]
[352987118,1739475080260,-599.62,0.00013945,2]
[352987119,1739475080270,-1214.97,0.00013945,2]
[352987120,1739475080279,-2027.08,0.00013945,2]
[352987121,1739475080288,-5493.44,0.00013945,2]
[352987122,1739475080298,-1650.21,0.00013945,2]
[352987123,1739475080308,-1211.61,0.00013945,2]
[352987124,1739475080318,-940.13,0.00013945,2]
[352987125,1739475080328,-500.0,0.00013945,2]
[352987126,1739475080337,-4125.45,0.00013945,2]
[352987127,1739475080347,-1075.510688,0.00013945,2]
[352987128,1739475080356,-500.0,0.00013945,2]
[352987129,1739475080366,-4126.09,0.00013945,2]
[352987130,1739475080375,-500.0,0.00013945,2]
[352987131,1739475080384,-544.37,0.00013945,2]
[352987132,1739475080394,-3802.99,0.00013945,2]
[352987133,1739475080403,-3347.0,0.00013945,2]
[352987134,1739475080412,-774.19,0.00013945,2]
[352987135,1739475080421,-500.0,0.00013945,2]
[352987136,1739475080431,-809.66,0.00013945,2]
[352987137,1739475080441,-2939.99,0.00013945,2]
[352987138,1739475080450,-717.64,0.00013945,2]
[352987139,1739475080459,-2077.66,0.00013945,2]
[352987140,1739475080468,-2828.19,0.00013945,2]
[352987141,1739475080478,-2886.05,0.00013945,2]
[352987142,1739475080491,-5356.84,0.00013945,2]
[352987143,1739475080501,-1618.43,0.00013945,2]
[352987144,1739475080510,-3235.78,0.00013945,2]
[352987145,1739475080519,-408.31353044,0.00013945,2]
[352987146,1739475080530,-1540.895058,0.00013945,2]
[352987147,1739475080540,-500.0,0.00013945,2]
[352987148,1739475080550,-5036.59,0.00013945,2]
[352987149,1739475080559,-4316.27,0.00013945,2]
[352987150,1739475080575,-2371.41,0.00013945,2]
[352987151,1739475080584,-500.0,0.00013945,2]
[352987152,1739475080594,-2004.58,0.00013945,2]
[352987153,1739475080604,-1936.09,0.00013945,2]
[352987154,1739475080614,-985.692821,0.00013945,2]
[352987155,1739475080624,-1131.94,0.00013945,2]
[352987156,1739475080633,-937.68,0.00013945,2]
[352987157,1739475080643,-2221.99,0.00013945,2]
[352987158,1739475080653,-738.62,0.00013945,2]
[352987159,1739475080662,-6171.14,0.00013945,2]
[352987160,1739475080672,-1717.13,0.00013945,2]
[352987161,1739475080681,-2000.21,0.00013945,2]
[352987162,1739475080691,-500.0,0.00013945,2]
[352987163,1739475080700,-1114.91,0.00013945,2]
[352987164,1739475080710,-1348.69,0.00013945,2]
[352987165,1739475080720,-2250.57,0.00013945,2]
[352987166,1739475080730,-500.0,0.00013945,2]
[352987167,1739475080740,-971.57,0.00013945,2]
[352987168,1739475080749,-1336.768423,0.00013945,2]
[352987169,1739475080759,-500.0,0.00013945,2]
[352987170,1739475080768,-3900.58,0.00013945,2]
[352987171,1739475080778,-4350.9,0.00013945,2]
[352987172,1739475080789,-2258.94,0.00013945,2]
[352987173,1739475080799,-811.195997,0.00013945,2]
[352987174,1739475080809,-689.33,0.00013945,2]
[352987175,1739475080821,-983.48,0.00013945,2]
[352987176,1739475080831,-1198.84,0.00013945,2]
[352987177,1739475080840,-500.0,0.00013945,2]
[352987178,1739475080850,-500.0,0.00013945,2]
[352987179,1739475080860,-5365.37,0.00013945,2]
[352987180,1739475080869,-500.0,0.00013945,2]
[352987181,1739475080879,-1649.95,0.00013945,2]
[352987182,1739475080888,-500.0,0.00013945,2]
[352987183,1739475080897,-500.0,0.00013945,2]
[352987184,1739475080907,-1067.012239,0.00013945,2]
[352987185,1739475080916,-1661.34,0.00013945,2]
[352987186,1739475080926,-500.0,0.00013945,2]
[352987187,1739475080935,-2641.12,0.00013945,2]
[352987188,1739475080945,-4439.72,0.00013945,2]
[352987189,1739475080955,-1527.53,0.00013945,2]
[352987190,1739475080964,-500.0,0.00013945,2]
[352987191,1739475080974,-3972.1,0.00013945,2]
[352987192,1739475080983,-6727.14,0.00013945,2]
[352987193,1739475080993,-638.084319,0.00013945,2]
[352987194,1739475081002,-500.0,0.00013945,2]
[352987195,1739475081012,-1256.13,0.00013945,2]
[352987196,1739475081021,-903.73,0.00013945,2]
[352987197,1739475081030,-3601.34,0.00013945,2]
[352987198,1739475081039,-4448.06,0.00013945,2]
[352987199,1739475081048,-1608.2,0.00013945,2]
[352987200,1739475081057,-1347.74,0.00013945,2]
[352987201,1739475081067,-500.0,0.00013945,2]
[352987202,1739475081077,-4307.36,0.00013945,2]
[352987203,1739475081087,-500.0,0.00013945,2]
[352987204,1739475081096,-1728.2,0.00013945,2]
[352987205,1739475081106,-3369.76,0.00013945,2]
[352987206,1739475081115,-500.0,0.00013945,2]
[352987207,1739475081125,-1047.06,0.00013945,2]
[352987208,1739475081134,-3046.15,0.00013945,2]
[352987209,1739475081144,-821.756448,0.00013945,2]
[352987210,1739475081154,-694.85,0.00013945,2]
[352987211,1739475081163,-516.44,0.00013945,2]
[352987212,1739475081172,-500.0,0.00013945,2]
[352987213,1739475081182,-5167.61,0.00013945,2]
[352987214,1739475081191,-5739.84,0.00013945,2]
[352987215,1739475081201,-500.0,0.00013945,2]
[352987216,1739475081211,-2692.01,0.00013945,2]
[352987217,1739475081220,-172.01675882,0.00013945,2]
[352987218,1739475081230,-4280.0,0.00013945,2]
[352987219,1739475081240,-4071.84,0.00013945,2]
[352987220,1739475081250,-5540.57,0.00013945,2]
[352987221,1739475081259,-4613.96,0.00013945,2]
[352987222,1739475081269,-1755.49,0.00013945,2]
[352987223,1739475081279,-648.52,0.00013945,2]
[352987224,1739475081288,-2979.72,0.00013945,2]
[352987225,1739475081298,-500.0,0.00013945,2]
[352987226,1739475081307,-1546.84,0.00013945,2]
[352987227,1739475081316,-5417.0,0.00013945,2]
[352987228,1739475081329,-4857.67,0.00013945,2]
[352987229,1739475081341,-2491.99,0.00013945,2]
[352987230,1739475081351,-2015.41,0.00013945,2]
[352987231,1739475081360,-500.0,0.00013945,2]
[352987232,1739475081370,-2318.33,0.00013945,2]
[352987233,1739475081380,-794.46,0.00013945,2]
[352987234,1739475081389,-500.0,0.00013945,2]
[352987235,1739475081466,-801.08,0.00013945,2]
[352987236,1739475081478,-4191.53,0.00013945,2]
[352987237,1739475081492,-500.0,0.00013945,2]
[352987238,1739475081502,-2304.68,0.00013945,2]
[352987239,1739475081511,-5634.82,0.00013945,2]
[352987240,1739475081522,-3695.91,0.00013945,2]
[352987241,1739475081532,-500.0,0.00013945,2]
[352987242,1739475081541,-7013.62,0.00013945,2]
[352987243,1739475081551,-500.0,0.00013945,2]
[352987244,1739475081561,-6386.13,0.00013945,2]
[352987245,1739475081572,-4656.79,0.00013945,2]
[352987246,1739475081582,-667.31,0.00013945,2]
[352987247,1739475081592,-1455.88,0.00013945,2]
[352987248,1739475081601,-4741.68,0.00013945,2]
[352987249,1739475081612,-500.0,0.00013945,2]
[352987250,1739475081622,-500.0,0.00013945,2]
[352987251,1739475081632,-1601.24,0.00013945,2]
[352987252,1739475081642,-512.713647,0.00013945,2]
[352987253,1739475081652,-500.0,0.00013945,2]
[352987254,1739475081661,-500.0,0.00013945,2]
[352987255,1739475081671,-5576.37,0.00013945,2]
[352987256,1739475081681,-4482.65,0.00013945,2]
[352987257,1739475081691,-1856.19,0.00013945,2]
[352987258,1739475081703,-14453.63,0.00013945,2]
[352987259,1739475081712,-1470.92,0.00013945,2]
[352987260,1739475081722,-508.49,0.00013945,2]
[352987261,1739475081733,-559.61,0.00013945,2]
[352987262,1739475081743,-500.0,0.00013945,2]
[352987263,1739475081753,-5159.44,0.00013945,2]
[352987264,1739475081764,-644.209003,0.00013945,2]
[352987265,1739475081773,-13563.83,0.00013945,2]
[352987266,1739475081783,-3051.16,0.00013945,2]
[352987267,1739475081793,-5819.32,0.00013945,2]
[352987268,1739475081803,-609.3,0.00013945,2]
[352987269,1739475081813,-402.334344,0.00013945,2]
[352987270,1739475081826,-5482.63,0.00013945,2]
[352987271,1739475081836,-3140.09,0.00013945,2]
[352987272,1739475081847,-5682.07,0.00013945,2]
[352987273,1739475081857,-4902.14,0.00013945,2]
[352987274,1739475081867,-4482.95,0.00013945,2]
[352987275,1739475081876,-7116.76,0.00013945,2]
[352987276,1739475081886,-4035.5,0.00013945,2]
[352987277,1739475081895,-917.22,0.00013945,2]
[352987278,1739475081905,-1819.58097727,0.00013945,2]
[352987279,1739475082475,-648.38324154,0.00013945,2]
[352987280,1739475082491,-407.10578119,0.00013945,2]
[352987281,1739475082502,-115.80610336,0.00013945,2]
[352987282,1739475082515,-266.88,0.00013945,2]
[352987283,1739475082546,-1435.57389664,0.00013945,2]
[352987284,1739475082557,-500.0,0.00013945,2]
[352987285,1739475082572,-993.49299095,0.00013945,2]
[352987286,1739475082586,-2707.70700905,0.00013945,2]
[352987287,1739475082597,-4745.42,0.00013945,2]
[352987288,1739475082608,-1258.584666,0.00013945,2]
[352987289,1739475082678,-4141.845334,0.00013945,2]
[352987290,1739475082689,-4379.0,0.00013945,2]
[352987291,1739475082700,-5536.20055072,0.00013945,2]
[352987292,1739475082713,-1529.42944928,0.00013945,2]
[352987293,1739475082724,-3515.39,0.00013945,2]
[352987294,1739475082736,-503.889883,0.00013945,2]
[352987295,1739475082747,-3128.49,0.00013945,2]
[352987296,1739475082757,-1600.83,0.00013945,2]
[352987297,1739475082767,-324.536157,0.00013945,2]
[352987298,1739475082779,-1315.3,0.00013945,2]
[352987299,1739475082789,-4301.87,0.00013945,2]
[352987300,1739475082799,-6974.62,0.00013945,2]